Cogmind - Beta 17 @@@ ROGUE MODE // 2026.06.28 @ 12:52:00 Player: beans Result: Destroyed by CN-NPN(R) with Subdweller Machine Gun Performance ------------- Evolutions (0) 0 Regions Visited (2) 400 Robots Destroyed (15) 75 Value Destroyed (354) 354 Prototype IDs (0) 0 Alien Tech Used (0) 0 Bonus (-14) -14 TOTAL SCORE: 815 Bonus ------- Friendly Fire -14 Cogmind --------- Core Integrity 0/250 Matter 286/300 Energy 170/170 System Corruption 0% Temperature Cool (17) Movement Core (350) Ox6 Location -10/Subcaves Parts ------- > --- POWER (1) -------- Makeshift Power Source > --- PROPULSION (2) --- (None) > --- UTILITY (2) ------ Small Storage Unit > --- WEAPON (2) ------- Subdweller Beam Cannon Subdweller Machine Gun > --- INVENTORY (8) ---- Makeshift Power Source Makeshift Flight Unit Assault Rifle Light Assault Rifle Peak State ------------ > --- POWER ------------ Makeshift Power Source > --- PROPULSION ------- Light Treads Makeshift Flight Unit > --- UTILITY ---------- Small Storage Unit > --- WEAPON ----------- Subdweller Machine Gun Subdweller Machine Gun > --- INVENTORY -------- Assault Rifle Light Assault Rifle [Rating: 14] Favorites ----------- Power Ion Engine Engine Ion Engine Propulsion Light Treads Treads Light Treads Flight Unit Makeshift Flight Unit Utility Small Storage Unit Device Improved Heat Sink Storage Small Storage Unit Weapon Flamer Energy Cannon Subdweller Beam Cannon Ballistic Gun Assault Rifle Special Weapon Flamer Build | -11 -10 -10 ------- Run | Yrd Mat Sub Slots Evolved . | . . . Power . | . . . Propulsion . | . . . Utility . | . . . Weapon . | . . . Parts Attached 15 | 6 1 8 Power 2 | 1 . 1 Engine 2 | 1 . 1 Core . | . . . Reactor . | . . . Propulsion 3 | 2 . 1 Treads 2 | 2 . . Leg . | . . . Wheel . | . . . Hover . | . . . Flight 1 | . . 1 Utility 2 | 1 1 . Device 1 | . 1 . Storage 1 | 1 . . Processor . | . . . Hackware . | . . . Protection . | . . . Artifact . | . . . Weapon 8 | 2 . 6 Energy Gun . | . . . Energy Cannon 1 | . . 1 Ballistic Gun 5 | 2 . 3 Ballistic Cannon . | . . . Launcher . | . . . Special Weapon 2 | . . 2 Impact Weapon . | . . . Slashing Weapon . | . . . Piercing Weapon . | . . . Special Melee Weapon . | . . . Unidentified Prototypes . | . . . Parts Lost 7 | . . 7 Power 1 | . . 1 Propulsion 2 | . . 2 Utility 1 | . . 1 Weapon 3 | . . 3 Highest Loss Streak 3 | . . 3 To Critical Strikes . | . . . Average Backups 3 | 1 1 3 Power . | . . . Propulsion . | . . . Utility . | . . . Weapon 2 | 1 1 2 Tool/Special . | . . . Unused Backups 1 | . . 1 Power 1 | . . 1 Propulsion . | . . . Utility . | . . . Weapon . | . . . Tool/Special . | . . . Average Slot Usage (%) 80 | . 90 78 Engine 10 | . 14 9 Treads 19 | . 28 18 Flight 3 | . . 3 Device 11 | . 4 12 Storage 14 | . 14 14 Ballistic Gun 13 | . 28 11 Special Weapon 6 | . . 7 Peak Build Rating 14 | 6 9 14 Average Rating 8 | 4 7 9 On Entrance 5 | . 6 9 Avg Prop Armor Cover (%) . | . . . Naked Turns . | . . . Heaviest Build 17 | 13 14 17 Greatest Support 40 | 40 40 40 Greatest Overweight (x) 1 | . . 1 Average Overweight (x) . | . . . Largest Inventory Capacity 8 | 8 8 8 Average Capacity 7 | 6 8 8 Most Carried 5 | 5 2 5 Average Carried 3 | 1 1 3 Final Capacity 8 | 8 8 8 Final Carried 4 | 1 1 4 Class Distribution -------------------- 100% | Mutant Dominant Class ---------------- Mutant | -10/Materials Mutant | -10/Subcaves Resources | -11 -10 -10 ----------- Run | Yrd Mat Sub Matter Collected 522 | 257 41 224 Remotely . | . . . Salvage Created 375 | . 161 214 Parts 25 | . 5 20 Haulers Intercepted . | . . . Recyclers Shooed . | . . . Parts Field Recycled . | . . . Retrieved Matter . | . . . Parts Self-Destructed 15 | . . 15 Prevented . | . . . Parts Restored . | . . . Kills | -11 -10 -10 ------- Run | Yrd Mat Sub Combat Hostiles Destroyed 14 | . 3 11 Guns 12 | . 3 9 Cannons 1 | . . 1 Classes Destroyed 5 | . 2 3 Tunneler 1 | . 1 . Swarmer 7 | . . 7 Grunt 3 | . 3 . Sentry 1 | . . 1 Subdweller 3 | . . 3 Best Kill Streak 5 | . 2 5 Combat Bots Only 4 | . 2 4 Max Kills in Single Turn 2 | . 1 2 Gunslinging . | . . . Exploded . | . . . Melee . | . . . Uniques/NPCs Destroyed . | . . . Combat | -11 -10 -10 -------- Run | Yrd Mat Sub Hostile Shots Fired 107 | . 1 106 Missed 33 | . . 33 Hits 74 | . 1 73 Projectile 74 | . 1 73 Damage Taken 1013 | . 44 969 Core 267 | . . 267 Absorbed by Shields . | . . . Core Remaining (%) 100 | 100 . . Volleys Fired 59 | . 11 48 Largest 2 | . 2 2 Hottest 110 | . 40 110 Shots Fired 97 | . 22 75 Gun 77 | . 22 55 Cannon 2 | . . 2 Launcher . | . . . Special 18 | . . 18 Kinetic 77 | . 22 55 Thermal 20 | . . 20 Explosive . | . . . Electromagnetic . | . . . Robot Hit Streak 28 | . 9 28 Robot Miss Streak 5 | . 3 5 Penetration Max . | . . . Secondary Targets 4 | . 1 3 Max Gunslinging Chain 1 | . 1 1 Shots Hit Robots 67 | . 15 52 Core Hits 25 | . 7 18 Critical Kills . | . . . Critical Parts Destroyed 1 | . . 1 Critical Strikes 2 | . . 2 Burn 1 | . . 1 Destroy 1 | . . 1 Melee Attacks . | . . . Impact . | . . . Slashing . | . . . Piercing . | . . . Sneak Attacks . | . . . Combat Hostiles . | . . . Follow-up Attacks . | . . . Damage Inflicted 1050 | . 253 797 Guns 757 | . 185 572 Cannons 59 | . . 59 Explosions 68 | . 68 . Melee . | . . . Ramming . | . . . Kinetic 757 | . 185 572 Thermal 225 | . . 225 Explosive 68 | . 68 . Electromagnetic . | . . . Impact . | . . . Slashing . | . . . Piercing . | . . . Highest Corruption . | . . . Average Corruption . | . . . Corruption Purged . | . . . Corruption Blocked . | . . . Overload Shots . | . . . Overflow Damage . | . . . Projectiles . | . . . Explosions . | . . . Melee . | . . . Knockbacks . | . . . Impact . | . . . Kinetic . | . . . Secondary . | . . . Self-Inflicted Damage 21 | . 21 . Shots 1 | . 1 . Rammed . | . . . Targets Rammed . | . . . Kicked . | . . . Crushed . | . . . Highest Temperature 17 | . . 17 Average Temperature 10 | . . 10 Received Heat Transfer 219 | . 12 207 Siege Activations . | . . . Martial Activations . | . . . Shielding Activations . | . . . Robots Disrupted . | . . . Combat Hostiles . | . . . Robots Corrupted . | . . . Combat Hostiles . | . . . Parts Fried . | . . . Impact Corruptions . | . . . Robots Melted 1 | . . 1 Combat Hostiles 1 | . . 1 Parts Melted 7 | . 2 5 Heat Transferred 1434 | . . 1434 Parts Sabotaged . | . . . Parts Stolen . | . . . Parts Stripped . | . . . Power Chain Reactions . | . . . Alert | -11 -10 -10 ------- Run | Yrd Mat Sub Maximum Alert Level . | . . . Low Security (%) 100 | 100 100 . Level 1 . | . . . Level 2 . | . . . Level 3 . | . . . Level 4 . | . . . Level 5 . | . . . High Security . | . . . Max Security . | . . . Peak Influence 83 | . 83 . Initial . | . . . Average 19 | . 25 . Influence Increases 343 | . 113 230 Destroy 0b10 Robot/C 220 | . 60 160 Destroy 0b10 Robot/NC 5 | . 5 . Destroy Leader 20 | . 10 10 Disable Machine 15 | . 15 . Destroy Structure 8 | . 8 . Lose Combat Pursuer 75 | . 15 60 Influence Decreases 291 | . 40 251 Entered New Map 36 | . . 36 Time Decay 225 | . 40 185 Lost Part 30 | . . 30 Squads Dispatched 2 | . 2 . Investigation 1 | . 1 . Extermination . | . . . Reinforcement 1 | . 1 . Assault . | . . . Garrison . | . . . Intercept . | . . . Searches Triggered . | . . . Construction Impeded . | . . . Haulers Reinforced . | . . . Active Scanning Responses . | . . . Cargo Convoy Interrupts . | . . . Stealth | -11 -10 -10 --------- Run | Yrd Mat Sub Distress Signals . | . . . Communications Jammed . | . . . Distress Signals . | . . . Times Spotted 30 | . 6 24 Peak Tracking Total 5 | . 3 5 Tactical Retreats 5 | . 1 4 Traps | -11 -10 -10 ------- Run | Yrd Mat Sub Traps Triggered . | . . . Indirectly . | . . . Trap Hack Attempts . | . . . Triggered . | . . . Disarmed . | . . . Reprogrammed . | . . . Reused . | . . . Traps Extracted . | . . . Installed . | . . . Triggered . | . . . Machines | -11 -10 -10 ---------- Run | Yrd Mat Sub Machines Disabled 1 | . 1 . Max in Single Turn 1 | . 1 . Machines Repaired . | . . . Machines Dismantled . | . . . Machines Sabotaged . | . . . Overloaded Fab Kills . | . . . Hacking | -11 -10 -10 --------- Run | Yrd Mat Sub Machines Accessed 1 | . . 1 Terminals . | . . . Fabricators . | . . . Repair Stations . | . . . Recycling Units . | . . . Scanalyzers . | . . . Garrison Access . | . . . Total Hacks 5 | . . 5 Successful 5 | . . 5 Failed . | . . . Catastrophic . | . . . Database Lockouts . | . . . Manual . | . . . Terminals . | . . . Fabricators . | . . . Repair Stations . | . . . Recycling Units . | . . . Scanalyzers . | . . . Garrison Access . | . . . Terminal Hacks 5 | . . 5 Record 5 | . . 5 Fabricator Hacks . | . . . Repair Station Hacks . | . . . Recycling Unit Hacks . | . . . Scanalyzer . | . . . Garrison Access Hacks . | . . . Unauthorized Hacks . | . . . Terminals . | . . . Fabricators . | . . . Repair Stations . | . . . Recycling Units . | . . . Scanalyzers . | . . . Garrison Access . | . . . Data Cores Recovered . | . . . Used . | . . . Hacking Detections . | . . . Full Trace Events . | . . . Feedback Events . | . . . Feedback Blocked . | . . . Robot Schematics Acquired . | . . . Robots Built . | . . . Authchips . | . . . Time . | . . . Total Robot Build Rating . | . . . Part Schematics Acquired . | . . . Parts Built . | . . . Authchips . | . . . Time . | . . . Total Part Build Rating . | . . . Part Studies Acquired . | . . . Parts Repaired . | . . . Time . | . . . Parts Recycled . | . . . Recycled Matter . | . . . Retrieved Matter . | . . . Retrieved Components . | . . . Parts Scanalyzed . | . . . Part Schematics Acquired . | . . . Parts Damaged . | . . . Bothacking | -11 -10 -10 ------------ Run | Yrd Mat Sub Used RIF Installer . | . . . Robots Hacked . | . . . Non-combat . | . . . Combat . | . . . Robot Hacks Applied . | . . . Relay Couplers Released . | . . . Fabnet Peak Effective % . | . . . Robots Rewired . | . . . Allies Hacked . | . . . Hacks Repelled . | . . . Allies | -11 -10 -10 -------- Run | Yrd Mat Sub Total Allies . | . . . Largest Group . | . . . Highest-Rated Group . | . . . Highest-Rated Ally . | . . . Total Orders . | . . . Ally Attacks . | . . . Total Damage . | . . . Kills . | . . . Allies Corrupted . | . . . Allies Melted . | . . . Intel | -11 -10 -10 ------- Run | Yrd Mat Sub Active Infowar (turns) . | . . . Robot Analysis Total . | . . . Derelict Logs Recovered 1 | . . 1 Drone Launches . | . . . Drone Recoveries . | . . . Exploration | -11 -10 -10 ------------- Run | Yrd Mat Sub Turns Passed 1601 | 62 205 1334 Spaces Moved 1186 | 39 103 1044 Core 11 | 11 . . Treads 635 | 28 103 504 Legs . | . . . Wheels . | . . . Hover . | . . . Flight 540 | . . 540 Fastest Speed 50 | 50 160 55 Average Speed 112 | 128 160 107 Slowest Speed 160 | 160 160 160 Overloaded Moves . | . . . Propulsion Burnouts . | . . . Robots Hopped 2 | . . 2 Potential Cave-ins . | . . . Cave-ins Triggered . | . . . Exploration Rate (%) 32 | 3 31 62 Regions Visited 2 Branch Regions 1 Pre-discovered Areas 2 | . . 2 Known Exits Taken . | . . . Unknown Exits Taken 2 | 1 1 . Scrap Searched 6 | . . 6 Spaces Dug . | . . . Terrain Destroyed 8 | . 8 . Melee . | . . . Projectile . | . . . AOE 8 | . 8 . Terrain Rammed . | . . . Walls Destroyed . | . . . Machines Disabled . | . . . Actions | -11 -10 -10 --------- Run | Yrd Mat Sub Total 1345 | 51 124 1170 Wait 60 | . 9 51 Move 1181 | 38 102 1041 Hop 1 | . . 1 Pick Up 16 | 7 1 8 Fast Attach . | . . . Attach 17 | 6 1 10 Detach 6 | . . 6 Swap 4 | . . 4 Drop 1 | . . 1 Fire 59 | . 11 48 Melee . | . . . Ram . | . . . Kick . | . . . Crush . | . . . Escape Stasis . | . . . Rewire . | . . . Trap . | . . . Miscellaneous . | . . . Route ------- -11/Scrapyard -10/Materials -10/Subcaves (discovered 2 exits: [*Mat] / [*Rec]) History --------- Turn | Location | Event 3 | -11/Scrapyard | Discovered new exit (range 16) 63 | -11/Scrapyard | Entered Materials 64 | -10/Materials | Met a group of wandering Federalists 254 | -10/Materials | Discovered new exit (range 8) 268 | -10/Materials | Entered Subcaves 307 | -10/Subcaves | Build established: Mutant 335 | -10/Subcaves | Visited Clippyterm 340 | -10/Subcaves | Learned location of Section 7 (-3) 340 | -10/Subcaves | Learned Factory garrison access intel 373 | -10/Subcaves | Shifting Twisted Machinery released Mak. Flight Unit 376 | -10/Subcaves | Shifting Twisted Machinery released Flamer 1095 | -10/Subcaves | Lost 3 parts (1p1n1w) 1124 | -10/Subcaves | Ambushed by Subdwellers from Twisted Machinery 1288 | -10/Subcaves | Shifting Twisted Machinery released Hvy. Riot Gun 1288 | -10/Subcaves | Discovered new exit (range 8) 1289 | -10/Subcaves | Shifting Twisted Machinery released Sub. Beam Cannon 1377 | -10/Subcaves | Core integrity fell below 50% 1389 | -10/Subcaves | Discovered new exit (range 11) 1396 | -10/Subcaves | Learned location of Zion (-7) 1396 | -10/Subcaves | Met a Zionite searching for "candidates" 1410 | -10/Subcaves | Disturbed a concealed Subdweller 1430 | -10/Subcaves | Learned Materials garrison access intel 1599 | -10/Subcaves | Core integrity fell below 20% 1602 | -10/Subcaves | Destroyed by CN-NPN(R) with Subdweller Machine Gun Last Messages --------------- Acquired derelict log, extracted data. Data stored: Materials garrison access intel. Searching scrap... Found Mak. Power Source. Found Sub. Monowheel. Found 57 Matter. Acquired 57 matter. Searching scrap... Found Mak. Power Source. Found 39 Matter. Searching scrap... Found Mak. Axe. Found 66 Matter. Acquired Mak. Power Source. Subatomizers dissect the Sub. Power Source. Acquired 20 matter. Acquired Sub. Beam Cannon. Acquired Mak. Power Source. Sub. Machine Gun destroyed. Lgt. Treads destroyed. Map ----- +----------------------------------------------------+ | ???????????????????????????????????????????????? | | ???????????????????????????????????????????????? | | ???????????????????????????????????????????????? | | ???????????????????????????????????????????????? | | ???????????????????????????????? ?????????????? | | ??????????????????????????????? #????????????? | | ??????????????????????????????? ##???????????? | | ??????????????????????????????? ##?##???????? | | ??????????????????????????????# ## ##??????? | | ?????????????????????????????? #??????? | | ????????????????????????????## #??????? | | ??????????????????????????### ##?????? | | ?????????????????????##??## #?????? | | ?????????????????????? ## #?????? | | ???????????????????????? #?????? | | ????????????????????????? #?????? | | ?????????????????????????? #?????? | | ???????????????????????????# #?????? | | ???????????????????????????# #?????? | | ???????????????????????###?# #??????? | | ??????????????????????## #?# #??????? | | ?????????????????????## ### ## #??????? | | ???????????????????### RR #?# ##??????? | | ???????????????????# #?# ##??????? | | ???????????????????# ##### ### #??????? | | ???????????????????## @ ##???# ### #??????? | | ????????????????????## #????# ## ####?#### | | ?????????????????????# #????# # ### | | ????????????????????# #?## | | ????????????????????# #?##### # | | ????????????????????## ##?????# # ###### | | ?????????????????????########??????########????? | | ???????????????????????????????????????????????? | | ???????????????????????????????????????????????? | | ???????????????????????????????????????????????? | | ???????????????????????????????????????????????? | | ???????????????????????????????????????????????? | | ???????????????????????????????????????????????? | | ???????????????????????????????????????????????? | | ???????????????????????????????????????????????? | | ???????????????????????????????????????????????? | | ???????????????????????????????????????????????? | | ???????????????????????????????????????????????? | | ???????????????????????????????????????????????? | | ???????????????????????????????????????????????? | | ???????????????????????????????????????????????? | | | | | | | | | +----------------------------------------------------+ Best States ------------- Heat Dissipation 39 Energy Generation 15 Energy Capacity 250 Matter Stores 300 Matter Capacity 300 Sight Range 16 Terrain Scan Density 10 Evasion (%) 59 Recoil Reduction 2 Item Schematics ----------------- None Robot Schematics ------------------ None Fabricated ------------ Nothing Repaired ---------- Nothing Studied --------- None Alien Tech Used ----------------- None Achievements -------------- None Challenges ------------ None Game ------ Seed RecoilFireWell Manual? 0 Play Time 00:12:56 Cumulative 356.4 hours Start 2026.06.28 @ 12:44:34 End 2026.06.28 @ 12:52:00 Sessions 1 Manual Loads 0 Difficulty Rogue Special Mode None Game No. 883 Rogue 881 Adventurer 2 Explorer 0 Win Type - Total 1 Types 1/0/0/0/0/0/0/0/0/0 Lore% 50 Gallery% 67 Achievement% 53 Wizard Run 0 Options --------- Layout 2 ASCII 0 Keyboard 0 Movement Mouse Keybinds 0 Fullscreen 1 Font 24/Smallcaps Map View 50x44 Zoom Use 0% Tactical HUD 0 Map Filters NONE Filters NONE Steam 1 RUN: 3a10d5b9-5b7b-417b-92ac-a49033ed2e15